[Event "M. Gvozdenovica Memorial 2019"]
[Site "Valjevo"]
[Date "2019.10.08"]
[Round "5.1"]
[White "Blagojevic, Dragisa"]
[Black "Tomic, Aleksandar"]
[Result "1/2-1/2"]
[ECO "A43"]
[WhiteElo "2500"]
[BlackElo "2360"]
[Annotator "ChessBase"]
[PlyCount "75"]
[EventDate "2019.10.08"]
[EventCountry "SRB"]
[SourceTitle "playchess.com"]
[Source "ChessBase"]
[SourceQuality "1"]
[TimeControl "5400+30"]

1. d4 c5 {[%emt 0:09:42]} 2. e4 {[%emt 0:01:48]} e6 {[%emt 0:03:18]} 3. d5 {[%emt 0:00:30]} exd5 {[%emt 0:00:30]} 4. exd5 {[%emt 0:00:07]} d6 {[%emt 0:00:03]} 5. Bb5+ {[%emt 0:01:54]} Nd7 {[%emt 0:00:53]} 6. a4 {[%emt 0:00:15]} Ngf6 {[%emt 0:02:26]} 7. Nf3 {[%emt 0:02:02]} Be7 {[%emt 0:00:36]} 8. O-O {[%emt 0:00:47]} a6 {[%emt 0:03:06]} 9. Be2 {[%emt 0:01:00]} O-O {[%emt 0:01:00]} 10. c4 {[%emt 0:04:16]} Re8 {[%emt 0:00:36]} 11. Nc3 {[%emt 0:01:27]} Nf8 {[%emt 0:00:36]} 12. h3 {[%emt 0:01:53]} Ng6 {[%emt 0:00:19]} 13. Re1 {[%emt 0:00:40]} Bf5 {[%emt 0:13:03]} 14. Bf1 {[%emt 0:09:26]} h5 {[%emt 0:01:59]} 15. Bg5 {[%emt 0:02:33]} Nd7 {[%emt 0:01:54]} 16. Bxe7 {[%emt 0:08:40]} Rxe7 {[%emt 0:00:32]} 17. Qd2 {[%emt 0:03:42]} Rxe1 {[%emt 0:05:49]} 18. Rxe1 {[%emt 0:00:10]} Qf6 {[%emt 0:00:28]} 19. Ng5 {[%emt 0:08:51]} Qd8 {[%emt 0:07:58]} 20. Nge4 {[%emt 0:06:38]} Bxe4 {[%emt 0:01:35]} 21. Nxe4 {[%emt 0:03:13]} Nf6 {[%emt 0:00:53]} 22. Qg5 {[%emt 0:09:09]} Nxe4 {[%emt 0:01:22]} 23. Qxd8+ {[%emt 0:00:08]} Rxd8 {[%emt 0:00:05]} 24. Rxe4 {[%emt 0:00:04]} Ne5 {[%emt 0:05:57]} 25. f4 {[%emt 0:01:08]} Nd7 {[%emt 0:01:12]} 26. Be2 {[%emt 0:01:46]} Kf8 {[%emt 0:01:30]} 27. Kf2 {[%emt 0:00:24]} g6 {[%emt 0:04:36]} 28. g4 {[%emt 0:01:52]} hxg4 {[%emt 0:00:50]} 29. hxg4 {[%emt 0:00:06]} Re8 {[%emt 0:04:00]} 30. Rxe8+ {[%emt 0:00:20]} Kxe8 {[%emt 0:00:03]} 31. g5 {[%emt 0:00:12]} a5 {[%emt 0:01:18]} 32. Bg4 {[%emt 0:02:05]} b6 {[%emt 0:00:47]} 33. Bxd7+ {[%emt 0:01:10]} Kxd7 {[%emt 0:00:05]} 34. Kf3 {[%emt 0:00:04]} Ke7 {[%emt 0:00:38]} 35. f5 {[%emt 0:00:14]} Kd7 {[%emt 0:00:20]} 36. Kf4 {[%emt 0:00:12]} Ke7 {[%emt 0:00:10]} 37. Ke4 {[%emt 0:00:16]} Kd7 {[%emt 0:00:08]} 38. Kf4 1/2-1/2

[Event "M. Gvozdenovica Memorial 2019"]
[Site "Valjevo"]
[Date "2019.10.08"]
[Round "5.5"]
[White "Ratkovic, Milovan"]
[Black "Savic, Miodrag R"]
[Result "1-0"]
[ECO "D37"]
[WhiteElo "2416"]
[BlackElo "2453"]
[Annotator "ChessBase"]
[PlyCount "87"]
[EventDate "2019.10.08"]
[EventCountry "SRB"]
[SourceTitle "playchess.com"]
[Source "ChessBase"]
[SourceQuality "1"]
[TimeControl "5400+30"]

1. d4 {[%emt 0:02:50]} Nf6 {[%emt 0:00:00]} 2. c4 {[%emt 0:01:14]} e6 {[%emt 0:00:35]} 3. Nc3 {[%emt 0:00:12]} d5 {[%emt 0:00:40]} 4. Nf3 {[%emt 0:00:46]} Be7 {[%emt 0:01:29]} 5. Bf4 {[%emt 0:04:00]} O-O {[%emt 0:02:44]} 6. e3 {[%emt 0:01:45]} b6 {[%emt 0:01:41]} 7. cxd5 {[%emt 0:04:09]} exd5 {[%emt 0:00:59]} 8. Bd3 {[%emt 0:00:21]} Bb7 {[%emt 0:01:28]} 9. Ne5 {[%emt 0:02:21]} Nbd7 {[%emt 0:02:22]} 10. Rc1 {[%emt 0:03:31]} c5 {[%emt 0:02:59]} 11. O-O {[%emt 0:01:29]} a6 {[%emt 0:05:02]} 12. Qf3 {[%emt 0:08:11]} g6 {[%emt 0:05:33]} 13. Rfd1 {[%emt 0:08:04]} Rc8 {[%emt 0:15:25]} 14. Bb1 {[%emt 0:13:59]} Re8 {[%emt 0:10:52]} 15. h4 {[%emt 0:08:11]} Nf8 {[%emt 0:10:00]} 16. g4 {[%emt 0:03:00]} Bd6 {[%emt 0:00:50]} 17. Bg5 {[%emt 0:04:31]} Be7 {[%emt 0:02:06]} 18. Ne2 {[%emt 0:04:42]} Ne6 {[%emt 0:07:16]} 19. Nf4 {[%emt 0:01:05]} Nxf4 20. Qxf4 cxd4 {[%emt 0:06:03]} 21. exd4 {[%emt 0:02:26]} Qd6 {[%emt 0:03:20]} 22. f3 {[%emt 0:02:22]} Rxc1 {[%emt 0:08:38]} 23. Rxc1 {[%emt 0:00:20]} Rc8 {[%emt 0:02:07]} 24. Rxc8+ {[%emt 0:00:55]} Bxc8 {[%emt 0:00:12]} 25. Nxg6 {[%emt 0:03:15]} fxg6 {[%emt 0:03:06]} 26. Qxd6 {[%emt 0:00:31]} Bxd6 {[%emt 0:00:09]} 27. Bxf6 {[%emt 0:00:12]} Bf4 {[%emt 0:00:36]} 28. Bg5 {[%emt 0:01:52]} Bd6 {[%emt 0:00:30]} 29. Kf2 {[%emt 0:01:22]} Kf7 {[%emt 0:00:07]} 30. Ke3 {[%emt 0:02:07]} b5 {[%emt 0:00:34]} 31. Bf4 {[%emt 0:01:00]} Be7 {[%emt 0:00:23]} 32. h5 {[%emt 0:01:45]} Bd7 {[%emt 0:02:11]} 33. hxg6+ {[%emt 0:00:44]} hxg6 {[%emt 0:00:11]} 34. Bc2 {[%emt 0:00:45]} Bc6 {[%emt 0:00:25]} 35. Be5 {[%emt 0:01:16]} Bd8 {[%emt 0:01:58]} 36. Bd3 {[%emt 0:00:45]} Be7 {[%emt 0:01:07]} 37. Bc7 {[%emt 0:00:46]} Bb7 {[%emt 0:01:14]} 38. f4 {[%emt 0:01:09]} Bc8 {[%emt 0:01:28]} 39. Kf3 {[%emt 0:00:51]} Bf6 {[%emt 0:00:12]} 40. Be5 {[%emt 0:00:51]} Bd8 {[%emt 0:01:25]} 41. f5 {[%emt 0:01:12]} gxf5 {[%emt 0:01:24]} 42. gxf5 {[%emt 0:00:38]} Bd7 {[%emt 0:00:18]} 43. Kf4 {[%emt 0:00:33]} Bc8 {[%emt 0:01:08]} 44. Be2 {[%emt 0:00:37]} 1-0

[Event "M. Gvozdenovica Memorial 2019"]
[Site "Valjevo"]
[Date "2019.10.09"]
[Round "6.1"]
[White "Tomic, Aleksandar"]
[Black "Savic, Miodrag R"]
[Result "1/2-1/2"]
[ECO "D61"]
[WhiteElo "2360"]
[BlackElo "2453"]
[Annotator "ChessBase"]
[PlyCount "29"]
[EventDate "2019.10.08"]
[EventCountry "SRB"]
[SourceTitle "playchess.com"]
[Source "ChessBase"]
[SourceQuality "1"]
[TimeControl "5400+30"]

1. d4 Nf6 2. c4 e6 3. Nc3 d5 4. Nf3 {[%emt 0:07:20]} Be7 {[%emt 0:01:55]} 5. Bg5 {[%emt 0:00:25]} O-O {[%emt 0:00:29]} 6. e3 {[%emt 0:00:21]} Nbd7 {[%emt 0:00:38]} 7. Qc2 {[%emt 0:00:41]} h6 {[%emt 0:00:29]} 8. Bh4 {[%emt 0:00:14]} c6 9. Be2 {[%emt 0:01:50]} b6 {[%emt 0:01:34]} 10. O-O {[%emt 0:00:00]} Bb7 {[%emt 0:00:11]} 11. Rfd1 {[%emt 0:01:55]} Rc8 {[%emt 0:03:24]} 12. e4 {[%emt 0:00:11]} dxe4 {[%emt 0:00:30]} 13. Nxe4 {[%emt 0:00:30]} Nxe4 {[%emt 0:00:27]} 14. Bxe7 {[%emt 0:00:00]} Qxe7 {[%emt 0:00:09]} 15. Qxe4 {[%emt 0:00:00]} 1/2-1/2

[Event "M. Gvozdenovica Memorial 2019"]
[Site "Valjevo"]
[Date "2019.10.09"]
[Round "6.2"]
[White "Ratkovic, Miloje"]
[Black "Ratkovic, Milovan"]
[Result "0-1"]
[ECO "D25"]
[WhiteElo "2456"]
[BlackElo "2416"]
[Annotator "ChessBase"]
[PlyCount "76"]
[EventDate "2019.10.08"]
[EventCountry "SRB"]
[SourceTitle "playchess.com"]
[Source "ChessBase"]
[SourceQuality "1"]
[TimeControl "5400+30"]

1. d4 d5 {[%emt 0:01:22]} 2. c4 {[%emt 0:00:54]} dxc4 {[%emt 0:00:30]} 3. Nf3 {[%emt 0:03:27]} Nf6 {[%emt 0:01:56]} 4. e3 Bg4 {[%emt 0:00:48]} 5. Bxc4 {[%emt 0:01:22]} e6 {[%emt 0:00:30]} 6. O-O {[%emt 0:01:18]} a6 {[%emt 0:00:41]} 7. Nc3 {[%emt 0:02:50]} Nc6 {[%emt 0:02:54]} 8. b3 {[%emt 0:00:42]} Bd6 {[%emt 0:00:42]} 9. Bb2 {[%emt 0:01:27]} O-O {[%emt 0:00:50]} 10. Be2 {[%emt 0:05:14]} Qe8 {[%emt 0:07:12]} 11. Rc1 {[%emt 0:02:43]} Rd8 {[%emt 0:00:32]} 12. Nd2 {[%emt 0:08:21]} Bxe2 {[%emt 0:01:18]} 13. Qxe2 {[%emt 0:00:25]} Ne7 {[%emt 0:05:40]} 14. e4 {[%emt 0:07:57]} Nd7 {[%emt 0:06:22]} 15. Nc4 {[%emt 0:03:00]} Ng6 {[%emt 0:04:04]} 16. Rfd1 {[%emt 0:10:02]} Nf4 {[%emt 0:05:10]} 17. Qg4 {[%emt 0:05:17]} g6 {[%emt 0:06:52]} 18. Ne3 {[%emt 0:00:27]} h5 {[%emt 0:01:53]} 19. Qf3 {[%emt 0:03:19]} f5 {[%emt 0:01:18]} 20. d5 {[%emt 0:00:30]} e5 21. exf5 {[%emt 0:00:30]} gxf5 {[%emt 0:01:00]} 22. Nc4 {[%emt 0:04:00]} Qg6 {[%emt 0:03:44]} 23. Nxd6 {[%emt 0:02:12]} cxd6 {[%emt 0:00:22]} 24. Ne2 {[%emt 0:03:32]} Nxe2+ {[%emt 0:00:29]} 25. Qxe2 {[%emt 0:00:02]} Nf6 {[%emt 0:01:23]} 26. f3 {[%emt 0:02:22]} Rd7 {[%emt 0:01:09]} 27. Kh1 {[%emt 0:03:14]} f4 {[%emt 0:01:00]} 28. Rc2 {[%emt 0:01:57]} Rg7 {[%emt 0:03:13]} 29. Qd2 h4 {[%emt 0:02:26]} 30. h3 {[%emt 0:03:23]} Nh5 {[%emt 0:00:44]} 31. Rdc1 {[%emt 0:04:25]} Ng3+ {[%emt 0:00:57]} 32. Kh2 {[%emt 0:01:01]} Nf5 {[%emt 0:01:25]} 33. Qe2 {[%emt 0:03:48]} Ne3 {[%emt 0:01:08]} 34. Rd2 {[%emt 0:00:09]} Kh7 {[%emt 0:01:27]} 35. Kh1 {[%emt 0:00:18]} Rfg8 {[%emt 0:00:47]} 36. Rg1 {[%emt 0:00:14]} Qf5 {[%emt 0:02:18]} 37. Kh2 {[%emt 0:01:02]} Rxg2+ {[%emt 0:01:38]} 38. Rxg2 {[%emt 0:00:50]} Rxg2+ {[%emt 0:00:06]} 0-1

[Event "M. Gvozdenovica Memorial 2019"]
[Site "Valjevo"]
[Date "2019.10.09"]
[Round "6.3"]
[White "Markovic, Miroslav"]
[Black "Stojanovic, Dalibor"]
[Result "0-1"]
[ECO "C48"]
[WhiteElo "2392"]
[BlackElo "2501"]
[Annotator "ChessBase"]
[PlyCount "110"]
[EventDate "2019.10.08"]
[EventCountry "SRB"]
[SourceTitle "playchess.com"]
[Source "ChessBase"]
[SourceQuality "1"]
[TimeControl "5400+30"]

1. e4 e5 {[%emt 0:00:12]} 2. Nf3 {[%emt 0:10:41]} Nc6 {[%emt 0:00:38]} 3. Nc3 {[%emt 0:00:09]} Nf6 {[%emt 0:00:54]} 4. Bb5 {[%emt 0:00:03]} Nd4 {[%emt 0:03:24]} 5. Bc4 {[%emt 0:00:16]} d6 {[%emt 0:00:54]} 6. Nxd4 {[%emt 0:02:25]} exd4 {[%emt 0:00:10]} 7. Nd5 {[%emt 0:00:04]} Nd7 {[%emt 0:05:28]} 8. O-O {[%emt 0:01:13]} g6 {[%emt 0:00:18]} 9. Qf3 {[%emt 0:02:07]} c6 10. Nf4 {[%emt 0:03:41]} Ne5 {[%emt 0:05:31]} 11. Qe2 {[%emt 0:00:03]} g5 {[%emt 0:06:44]} 12. Nh3 {[%emt 0:00:43]} Bxh3 {[%emt 0:02:31]} 13. gxh3 {[%emt 0:00:02]} Qd7 {[%emt 0:00:26]} 14. d3 {[%emt 0:03:19]} Qxh3 {[%emt 0:02:42]} 15. f4 {[%emt 0:00:08]} Nxc4 {[%emt 0:00:25]} 16. dxc4 {[%emt 0:00:02]} g4 {[%emt 0:01:05]} 17. f5 {[%emt 0:02:14]} g3 {[%emt 0:02:36]} 18. Bf4 {[%emt 0:00:35]} Qxh2+ {[%emt 0:00:04]} 19. Qxh2 {[%emt 0:00:29]} gxh2+ {[%emt 0:00:04]} 20. Kxh2 {[%emt 0:00:19]} Kd7 {[%emt 0:00:11]} 21. Kg3 {[%emt 0:01:12]} Re8 {[%emt 0:05:17]} 22. Kf3 {[%emt 0:00:07]} Bg7 23. Rh1 {[%emt 0:00:12]} h5 {[%emt 0:00:10]} 24. Rad1 {[%emt 0:00:49]} c5 {[%emt 0:04:50]} 25. c3 {[%emt 0:00:30]} Be5 {[%emt 0:03:41]} 26. cxd4 {[%emt 0:00:30]} cxd4 {[%emt 0:00:30]} 27. b3 {[%emt 0:01:19]} Rc8 {[%emt 0:01:25]} 28. Rh4 {[%emt 0:00:40]} a6 {[%emt 0:03:44]} 29. a4 {[%emt 0:05:26]} b5 {[%emt 0:01:14]} 30. axb5 {[%emt 0:03:16]} axb5 {[%emt 0:00:24]} 31. Ra1 {[%emt 0:02:22]} bxc4 32. bxc4 {[%emt 0:00:08]} Rxc4 {[%emt 0:01:15]} 33. Bd2 {[%emt 0:00:04]} Rc2 {[%emt 0:02:42]} 34. Ra7+ {[%emt 0:00:03]} Rc7 {[%emt 0:00:06]} 35. Ra6 {[%emt 0:00:17]} Rb7 {[%emt 0:00:07]} 36. Ra3 {[%emt 0:02:02]} Bf6 {[%emt 0:06:58]} 37. Rh3 {[%emt 0:00:02]} h4 {[%emt 0:00:32]} 38. Be1 {[%emt 0:00:52]} Kc6 {[%emt 0:09:24]} 39. Bf2 Rhb8 {[%emt 0:01:43]} 40. Kg4 {[%emt 0:03:42]} Rb2 {[%emt 0:04:21]} 41. Ra6+ {[%emt 0:00:33]} R8b6 {[%emt 0:00:55]} 42. Rxb6+ {[%emt 0:00:15]} Kxb6 {[%emt 0:01:48]} 43. Bxh4 {[%emt 0:00:03]} Be5 {[%emt 0:02:15]} 44. Ra3 {[%emt 0:00:37]} Rg2+ {[%emt 0:01:56]} 45. Kf3 {[%emt 0:00:46]} Rh2 {[%emt 0:00:07]} 46. Bd8+ {[%emt 0:00:53]} Kb5 {[%emt 0:00:03]} 47. Ra1 {[%emt 0:00:59]} Rh3+ {[%emt 0:00:16]} 48. Kf2 {[%emt 0:00:07]} Kc4 {[%emt 0:00:29]} 49. Ra4+ {[%emt 0:00:45]} Kb3 {[%emt 0:00:20]} 50. Ra5 {[%emt 0:00:01]} d3 {[%emt 0:00:40]} 51. Rd5 {[%emt 0:00:37]} Kc2 {[%emt 0:00:21]} 52. Ba5 {[%emt 0:00:14]} Bf4 {[%emt 0:03:00]} 53. f6 {[%emt 0:00:34]} Be5 {[%emt 0:08:14]} 54. Bb4 {[%emt 0:00:17]} Bxf6 {[%emt 0:01:05]} 55. Rxd6 {[%emt 0:00:07]} Bc3 {[%emt 0:00:06]} 0-1

[Event "M. Gvozdenovica Memorial 2019"]
[Site "Valjevo"]
[Date "2019.10.10"]
[Round "7.1"]
[White "Pezelj, Novak"]
[Black "Tomic, Aleksandar"]
[Result "0-1"]
[ECO "B43"]
[WhiteElo "2479"]
[BlackElo "2360"]
[Annotator "ChessBase"]
[PlyCount "116"]
[EventDate "2019.10.08"]
[EventCountry "SRB"]
[SourceTitle "playchess.com"]
[Source "ChessBase"]
[SourceQuality "1"]
[TimeControl "5400+30"]

1. e4 {[%emt 0:00:00]} c5 {[%emt 0:00:00]} 2. Nf3 {[%emt 0:00:07]} e6 {[%emt 0:00:00]} 3. Nc3 {[%emt 0:00:26]} a6 {[%emt 0:00:19]} 4. d4 {[%emt 0:00:27]} cxd4 5. Nxd4 {[%emt 0:00:06]} Qc7 {[%emt 0:00:32]} 6. Bd3 {[%emt 0:04:03]} Nf6 {[%emt 0:00:11]} 7. Qe2 {[%emt 0:02:07]} d6 {[%emt 0:01:32]} 8. f4 {[%emt 0:00:34]} Be7 {[%emt 0:03:05]} 9. O-O {[%emt 0:00:54]} Nbd7 {[%emt 0:02:10]} 10. Kh1 {[%emt 0:02:27]} h5 {[%emt 0:03:26]} 11. Bd2 {[%emt 0:06:41]} b6 {[%emt 0:04:50]} 12. Rae1 {[%emt 0:06:00]} Bb7 {[%emt 0:07:57]} 13. b4 {[%emt 0:07:58]} h4 {[%emt 0:03:33]} 14. f5 {[%emt 0:30:07]} e5 {[%emt 0:00:46]} 15. Nf3 {[%emt 0:00:04]} h3 {[%emt 0:08:58]} 16. gxh3 {[%emt 0:10:06]} d5 {[%emt 0:05:08]} 17. exd5 {[%emt 0:02:14]} Bxb4 {[%emt 0:15:01]} 18. Ne4 {[%emt 0:04:35]} Nxd5 {[%emt 0:03:45]} 19. c3 {[%emt 0:00:06]} Bf8 {[%emt 0:05:50]} 20. h4 {[%emt 0:02:55]} N5f6 {[%emt 0:01:18]} 21. Nxf6+ {[%emt 0:02:08]} gxf6 {[%emt 0:00:37]} 22. Be4 {[%emt 0:00:47]} Nc5 {[%emt 0:00:50]} 23. Bxb7 {[%emt 0:00:06]} Qxb7 {[%emt 0:00:04]} 24. Qg2 {[%emt 0:02:38]} O-O-O {[%emt 0:02:18]} 25. Re2 {[%emt 0:00:21]} Bd6 {[%emt 0:01:22]} 26. Be1 {[%emt 0:00:46]} Nd3 {[%emt 0:01:41]} 27. Bg3 {[%emt 0:00:17]} Nc5 {[%emt 0:09:20]} 28. Nd2 {[%emt 0:00:28]} Be7 29. c4 Rd4 {[%emt 0:02:01]} 30. Qxb7+ {[%emt 0:07:34]} Kxb7 {[%emt 0:01:08]} 31. Rc1 {[%emt 0:00:14]} Rh5 {[%emt 0:00:51]} 32. Rf1 {[%emt 0:00:13]} Bf8 {[%emt 0:00:32]} 33. Bf2 {[%emt 0:01:34]} Rf4 34. Bxc5 {[%emt 0:00:03]} Rxf1+ {[%emt 0:01:49]} 35. Nxf1 {[%emt 0:04:59]} Bxc5 {[%emt 0:05:04]} 36. Re4 Kc6 37. Ng3 {[%emt 0:00:51]} Rh6 {[%emt 0:01:24]} 38. Kg2 {[%emt 0:00:58]} Bd4 {[%emt 0:00:28]} 39. Rg4 {[%emt 0:00:51]} Kc5 {[%emt 0:01:09]} 40. h5 {[%emt 0:00:17]} Kxc4 {[%emt 0:01:14]} 41. Rg7 {[%emt 0:00:55]} Kd3 {[%emt 0:00:52]} 42. Rxf7 {[%emt 0:00:47]} b5 {[%emt 0:01:12]} 43. Kf3 {[%emt 0:01:04]} e4+ {[%emt 0:01:19]} 44. Kg4 {[%emt 0:00:10]} Rh8 {[%emt 0:00:48]} 45. Rd7 {[%emt 0:00:02]} e3 {[%emt 0:01:42]} 46. Kf3 {[%emt 0:00:06]} Kc4 {[%emt 0:00:35]} 47. Ne2 {[%emt 0:02:46]} Be5 {[%emt 0:00:25]} 48. Ng3 {[%emt 0:00:25]} a5 {[%emt 0:02:14]} 49. Kxe3 {[%emt 0:00:15]} a4 {[%emt 0:00:15]} 50. Rb7 {[%emt 0:00:27]} b4 {[%emt 0:00:50]} 51. Ne4 {[%emt 0:00:16]} Bd4+ {[%emt 0:01:12]} 52. Kd2 {[%emt 0:00:41]} Rxh5 {[%emt 0:00:15]} 53. Nd6+ {[%emt 0:00:16]} Kd5 {[%emt 0:00:26]} 54. Rd7 Rxh2+ {[%emt 0:00:20]} 55. Kd3 {[%emt 0:01:11]} Rh3+ {[%emt 0:00:15]} 56. Kc2 {[%emt 0:00:07]} b3+ {[%emt 0:00:33]} 57. axb3 {[%emt 0:00:14]} axb3+ {[%emt 0:00:03]} 58. Kd2 Kc6 0-1

[Event "M. Gvozdenovica Memorial 2019"]
[Site "Valjevo"]
[Date "2019.10.10"]
[Round "7.2"]
[White "Budisavljevic, Luka"]
[Black "Blagojevic, Dragisa"]
[Result "0-1"]
[ECO "D48"]
[WhiteElo "2432"]
[BlackElo "2500"]
[Annotator "ChessBase"]
[PlyCount "78"]
[EventDate "2019.10.08"]
[EventCountry "SRB"]
[SourceTitle "playchess.com"]
[Source "ChessBase"]
[SourceQuality "1"]
[TimeControl "5400+30"]

1. d4 d5 {[%emt 0:01:22]} 2. c4 {[%emt 0:00:54]} e6 {[%emt 0:00:30]} 3. Nc3 {[%emt 0:00:30]} c6 {[%emt 0:00:30]} 4. e3 {[%emt 0:00:30]} Nf6 {[%emt 0:00:30]} 5. Nf3 {[%emt 0:00:30]} Nbd7 {[%emt 0:00:30]} 6. Bd3 {[%emt 0:00:30]} dxc4 {[%emt 0:00:30]} 7. Bxc4 {[%emt 0:00:30]} b5 {[%emt 0:00:30]} 8. Bd3 {[%emt 0:00:30]} a6 {[%emt 0:00:30]} 9. e4 {[%emt 0:00:30]} c5 {[%emt 0:00:30]} 10. d5 {[%emt 0:00:30]} c4 {[%emt 0:00:30]} 11. Bc2 {[%emt 0:00:30]} Qc7 {[%emt 0:00:30]} 12. dxe6 {[%emt 0:00:30]} fxe6 {[%emt 0:00:30]} 13. O-O {[%emt 0:00:30]} Bc5 {[%emt 0:00:30]} 14. e5 {[%emt 0:00:30]} Nxe5 {[%emt 0:00:30]} 15. Bf4 {[%emt 0:00:00]} Bd6 {[%emt 0:00:00]} 16. Bxe5 {[%emt 0:00:00]} Bxe5 {[%emt 0:00:00]} 17. Nxe5 {[%emt 0:00:00]} Qxe5 {[%emt 0:00:00]} 18. Re1 {[%emt 0:00:00]} Qc5 {[%emt 0:08:59]} 19. Ne4 {[%emt 0:00:00]} Nxe4 {[%emt 0:02:12]} 20. Bxe4 {[%emt 0:00:00]} Ra7 {[%emt 0:04:25]} 21. b4 {[%emt 0:00:11]} Qg5 {[%emt 0:39:41]} 22. f4 {[%emt 0:00:05]} Qe7 {[%emt 0:07:48]} 23. Qh5+ {[%emt 0:02:44]} Qf7 {[%emt 0:02:06]} 24. Bc6+ {[%emt 0:24:07]} Kf8 {[%emt 0:00:09]} 25. Qe5 {[%emt 0:09:47]} Qc7 {[%emt 0:03:38]} 26. Qd4 {[%emt 0:01:26]} Bd7 {[%emt 0:02:03]} 27. f5 {[%emt 0:22:49]} Bxc6 {[%emt 0:07:26]} 28. Rf1 {[%emt 0:03:04]} Kg8 {[%emt 0:02:33]} 29. fxe6 {[%emt 0:00:30]} Be8 {[%emt 0:00:30]} 30. e7 {[%emt 0:09:52]} h6 {[%emt 0:01:42]} 31. Rf8+ {[%emt 0:13:17]} Kh7 {[%emt 0:00:07]} 32. Re1 {[%emt 0:01:22]} Qd7 {[%emt 0:10:39]} 33. Qe4+ {[%emt 0:04:23]} g6 {[%emt 0:00:11]} 34. h4 {[%emt 0:02:41]} h5 {[%emt 0:01:10]} 35. Qf4 {[%emt 0:03:05]} Rg8 {[%emt 0:01:38]} 36. Qf6 {[%emt 0:00:55]} Rg7 {[%emt 0:00:54]} 37. Kh2 {[%emt 0:00:42]} Rc7 {[%emt 0:01:24]} 38. Re3 {[%emt 0:00:32]} c3 39. Rg3 {[%emt 0:00:29]} Qxe7 {[%emt 0:01:07]} 0-1

[Event "M. Gvozdenovica Memorial 2019"]
[Site "Valjevo"]
[Date "2019.10.10"]
[Round "7.4"]
[White "Ratkovic, Milovan"]
[Black "Markovic, Miroslav"]
[Result "1-0"]
[ECO "A50"]
[WhiteElo "2416"]
[BlackElo "2392"]
[Annotator "NA"]
[PlyCount "49"]
[EventDate "2019.10.08"]
[EventCountry "SRB"]
[SourceTitle "playchess.com"]
[Source "ChessBase"]
[SourceQuality "1"]
[TimeControl "5400+30"]

1. d4 {[%emt 0:00:00]} Nf6 {[%emt 0:00:00]} 2. c4 {[%emt 0:00:14]} Nc6 {[%emt 0:00:49]} 3. Nc3 {[%emt 0:03:38]} e5 {[%emt 0:02:35]} 4. d5 {[%emt 0:03:26]} Ne7 {[%emt 0:01:07]} 5. h4 {[%emt 0:03:34]} h5 {[%emt 0:07:09]} 6. Nf3 {[%emt 0:05:31]} Ng6 {[%emt 0:07:00]} 7. Bg5 {[%emt 0:01:13]} Be7 {[%emt 0:02:33]} 8. e3 {[%emt 0:04:26]} d6 {[%emt 0:02:42]} 9. Qc2 {[%emt 0:01:39]} Nf8 {[%emt 0:04:08]} 10. Bd3 {[%emt 0:02:59]} N8h7 {[%emt 0:13:48]} 11. O-O-O {[%emt 0:04:44]} O-O {[%emt 0:05:43]} 12. Rdg1 {[%emt 0:04:53]} a6 {[%emt 0:10:54]} 13. Nd2 {[%emt 0:09:15]} b5 {[%emt 0:13:17]} 14. f3 {[%emt 0:06:17]} Bd7 {[%emt 0:06:56]} 15. g4 {[%emt 0:06:23]} hxg4 {[%emt 0:09:11]} 16. fxg4 {[%emt 0:02:50]} bxc4 {[%emt 0:05:46]} 17. Nxc4 {[%emt 0:04:03]} c6 {[%emt 0:03:29]} 18. Kb1 {[%emt 0:09:55]} Rc8 {[%emt 0:01:15]} 19. Nxd6 {[%emt 0:03:32]} Bxd6 {[%emt 0:00:35]} 20. Bxh7+ {[%emt 0:00:24]} Kh8 {[%emt 0:00:20]} 21. Bf5 {[%emt 0:00:59]} cxd5 {[%emt 0:00:42]} 22. Bxf6 {[%emt 0:02:46]} gxf6 {[%emt 0:00:29]} 23. Qd2 {[%emt 0:01:49]} Bxf5+ {[%emt 0:00:31]} 24. gxf5 {[%emt 0:00:09]} e4 {[%emt 0:00:23]} 25. Qe2 {[%emt 0:00:34]} 1-0

[Event "M. Gvozdenovica Memorial 2019"]
[Site "Valjevo"]
[Date "2019.10.10"]
[Round "7.5"]
[White "Savic, Miodrag R"]
[Black "Ratkovic, Miloje"]
[Result "1/2-1/2"]
[ECO "B13"]
[WhiteElo "2453"]
[BlackElo "2456"]
[Annotator "ChessBase"]
[PlyCount "37"]
[EventDate "2019.10.08"]
[EventCountry "SRB"]
[SourceTitle "playchess.com"]
[Source "ChessBase"]
[SourceQuality "1"]
[TimeControl "5400+30"]

1. e4 {[%emt 0:00:00]} c6 {[%emt 0:00:19]} 2. d4 {[%emt 0:00:38]} d5 {[%emt 0:01:20]} 3. exd5 {[%emt 0:01:28]} cxd5 {[%emt 0:00:24]} 4. Bd3 {[%emt 0:00:52]} Nc6 {[%emt 0:02:24]} 5. c3 {[%emt 0:00:43]} Nf6 {[%emt 0:01:25]} 6. Nf3 {[%emt 0:04:04]} Bg4 {[%emt 0:02:53]} 7. O-O {[%emt 0:00:47]} e6 {[%emt 0:00:20]} 8. Re1 {[%emt 0:05:10]} Be7 {[%emt 0:01:39]} 9. Nbd2 {[%emt 0:00:14]} O-O {[%emt 0:00:35]} 10. Nf1 {[%emt 0:00:49]} Bh5 {[%emt 0:00:57]} 11. Bf4 {[%emt 0:01:45]} Bg6 {[%emt 0:00:55]} 12. Ng3 {[%emt 0:01:58]} Bxd3 {[%emt 0:02:09]} 13. Qxd3 {[%emt 0:00:10]} Bd6 {[%emt 0:00:23]} 14. Bxd6 {[%emt 0:03:27]} Qxd6 {[%emt 0:00:36]} 15. Re2 {[%emt 0:01:49]} Qc7 {[%emt 0:02:49]} 16. Rae1 {[%emt 0:00:32]} Rab8 {[%emt 0:00:25]} 17. Ne5 {[%emt 0:02:05]} b5 {[%emt 0:01:31]} 18. a3 {[%emt 0:00:23]} a5 {[%emt 0:01:08]} 19. h3 1/2-1/2

[Event "M. Gvozdenovica Memorial 2019"]
[Site "Valjevo"]
[Date "2019.10.11"]
[Round "8.2"]
[White "Markovic, Miroslav"]
[Black "Savic, Miodrag R"]
[Result "0-1"]
[ECO "A08"]
[WhiteElo "2392"]
[BlackElo "2453"]
[Annotator "ChessBase"]
[PlyCount "28"]
[EventDate "2019.10.08"]
[EventCountry "SRB"]
[SourceTitle "playchess.com"]
[Source "ChessBase"]
[SourceQuality "1"]
[TimeControl "5400+30"]

1. Nf3 {[%emt 0:17:03]} d5 {[%emt 0:00:22]} 2. g3 {[%emt 0:00:14]} c5 {[%emt 0:00:51]} 3. Bg2 {[%emt 0:00:10]} Nc6 {[%emt 0:00:40]} 4. O-O {[%emt 0:00:04]} e5 {[%emt 0:01:15]} 5. d3 {[%emt 0:00:10]} Nge7 {[%emt 0:03:30]} 6. e4 {[%emt 0:01:59]} d4 {[%emt 0:00:30]} 7. Nh4 {[%emt 0:00:27]} f6 {[%emt 0:08:04]} 8. f4 {[%emt 0:00:30]} Be6 {[%emt 0:00:19]} 9. Nd2 {[%emt 0:04:00]} Qd7 {[%emt 0:01:41]} 10. f5 {[%emt 0:00:30]} Bg8 {[%emt 0:00:30]} 11. Bf3 {[%emt 0:00:12]} O-O-O {[%emt 0:02:06]} 12. Bh5 {[%emt 0:00:30]} Kb8 {[%emt 0:01:57]} 13. a3 {[%emt 0:07:53]} Nc8 {[%emt 0:00:42]} 14. b3 {[%emt 0:00:22]} Nb4 {[%emt 0:01:56]} 0-1